lending/lending_fUSD_20240512
["ID","MTS","AMOUNT","RATE_DAILY","PERIOD"]
[326889242,1715542267600,-1246.07,0.00012328,2]
[326889243,1715542267610,-500.0,0.00012328,2]
[326889244,1715542267619,-1365.24,0.00012328,2]
[326889245,1715542267628,-1803.37,0.00012328,2]
[326889246,1715542267636,-500.0,0.00012328,2]
[326889247,1715542267646,-1246.07,0.00012328,2]
[326889248,1715542267655,-500.0,0.00012328,2]
[326889249,1715542267664,-1803.37,0.00012328,2]
[326889250,1715542267674,-500.0,0.00012328,2]
[326889251,1715542267684,-785.86,0.00012328,2]
[326889252,1715542267694,-1246.07,0.00012328,2]
[326889253,1715542267703,-500.0,0.00012328,2]
[326889254,1715542267713,-1803.37,0.00012328,2]
[326889255,1715542267722,-1365.24,0.00012328,2]
[326889256,1715542267732,-500.0,0.00012328,2]
[326889257,1715542267741,-785.86,0.00012328,2]
[326889258,1715542267752,-1246.07,0.00012328,2]
[326889259,1715542267763,-500.0,0.00012328,2]
[326889260,1715542267772,-500.0,0.00012328,2]
[326889261,1715542267782,-1803.37,0.00012328,2]
[326889262,1715542267792,-1365.24,0.00012328,2]
[326889263,1715542267802,-785.86,0.00012328,2]
[326889264,1715542267811,-1246.07,0.00012328,2]
[326889265,1715542267821,-500.0,0.00012328,2]
[326889266,1715542267830,-474.16886388,0.00012328,2]
[326889267,1715542267840,-1365.24,0.00012328,2]
[326889268,1715542267850,-1803.37,0.00012328,2]
[326889269,1715542267859,-785.86,0.00012328,2]
[326889270,1715542267868,-1246.07,0.00012328,2]
[326889271,1715542267878,-500.0,0.00012328,2]
[326889272,1715542267887,-776.35,0.00012328,2]
[326889273,1715542267897,-1803.37,0.00012328,2]
[326889274,1715542267906,-1365.24,0.00012328,2]
[326889275,1715542267915,-785.86,0.00012328,2]
[326889276,1715542267924,-1246.07,0.00012328,2]
[326889277,1715542267933,-500.0,0.00012328,2]
[326889278,1715542267942,-776.35,0.00012328,2]
[326889279,1715542267951,-500.0,0.00012328,2]
[326889280,1715542267960,-1377.8383561,0.00012328,2]
[326889281,1715542268233,-425.5316439,0.00012328,2]
[326889282,1715542268243,-785.86,0.00012328,2]
[326889283,1715542268253,-1246.07,0.00012328,2]
[326889284,1715542268263,-1365.24,0.00012328,2]
[326889285,1715542268272,-500.0,0.00012328,2]
[326889286,1715542268281,-776.35,0.00012328,2]
[326889287,1715542268291,-1803.37,0.00012328,2]
[326889288,1715542268301,-1246.07,0.00012328,2]
[326889289,1715542268314,-785.86,0.00012328,2]
[326889290,1715542268326,-1365.24,0.00012328,2]
[326889291,1715542268337,-500.0,0.00012328,2]
[326889292,1715542268347,-776.35,0.00012328,2]
[326889293,1715542268359,-1803.38658064,0.00012328,2]
[326889294,1715542268424,-1365.24,0.00012328,2]
[326889295,1715542268436,-500.0,0.00012328,2]
[326889296,1715542268450,-785.86,0.00012328,2]
[326889297,1715542268460,-1246.07,0.00012328,2]
[326889298,1715542268471,-776.35,0.00012328,2]
[326889299,1715542268483,-1365.24,0.00012328,2]
[326889300,1715542268492,-500.0,0.00012328,2]
[326889301,1715542268501,-776.35,0.00012328,2]
[326889302,1715542268510,-550.94004251,0.00012328,2]
[326889303,1715542268521,-1246.07,0.00012328,2]
[326889304,1715542268531,-785.86,0.00012328,2]
[326889305,1715542268540,-1365.24,0.00012328,2]
[326889306,1715542268549,-500.0,0.00012328,2]
[326889307,1715542268558,-776.35,0.00012328,2]
[326889308,1715542268567,-1246.07,0.00012328,2]
[326889309,1715542268576,-1365.24,0.00012328,2]
[326889310,1715542268585,-500.0,0.00012328,2]
[326889311,1715542268594,-785.86,0.00012328,2]
[326889312,1715542268603,-776.35,0.00012328,2]
[326889313,1715542268612,-2249.85,0.00012328,2]
[326889314,1715542268621,-1246.07,0.00012328,2]
[326889315,1715542268631,-1365.24,0.00012328,2]
[326889316,1715542268640,-785.86,0.00012328,2]
[326889317,1715542268650,-500.0,0.00012328,2]
[326889318,1715542268659,-776.35,0.00012328,2]
[326889319,1715542268668,-1246.07,0.00012328,2]
[326889320,1715542268678,-1365.24,0.00012328,2]
[326889321,1715542268687,-2249.85,0.00012328,2]
[326889322,1715542268696,-785.86,0.00012328,2]
[326889323,1715542268706,-776.35,0.00012328,2]
[326889324,1715542268715,-500.0,0.00012328,2]
[326889325,1715542268724,-2249.85,0.00012328,2]
[326889326,1715542268734,-1365.24,0.00012328,2]
[326889327,1715542268743,-1246.07,0.00012328,2]
[326889328,1715542268753,-785.86,0.00012328,2]
[326889329,1715542268763,-776.35,0.00012328,2]
[326889330,1715542268772,-500.0,0.00012328,2]
[326889331,1715542268781,-2249.85,0.00012328,2]
[326889332,1715542268791,-1365.24,0.00012328,2]
[326889333,1715542268800,-1246.07,0.00012328,2]
[326889334,1715542268810,-785.86,0.00012328,2]
[326889335,1715542268819,-776.35,0.00012328,2]
[326889336,1715542268830,-500.0,0.00012328,2]
[326889337,1715542268841,-2249.85,0.00012328,2]
[326889338,1715542268851,-1246.07,0.00012328,2]
[326889339,1715542268860,-785.86,0.00012328,2]
[326889340,1715542268870,-514.55739072,0.00012328,2]
[326889341,1715542268881,-776.35,0.00012328,2]
[326889342,1715542268890,-1365.24,0.00012328,2]
[326889343,1715542268900,-2249.85,0.00012328,2]
[326889344,1715542268909,-1246.07,0.00012328,2]
[326889345,1715542268918,-776.35,0.00012328,2]
[326889346,1715542268927,-1365.24,0.00012328,2]
[326889347,1715542268936,-1246.07,0.00012328,2]
[326889348,1715542268945,-785.86,0.00012328,2]
[326889349,1715542268954,-776.35,0.00012328,2]
[326889350,1715542268963,-1365.24,0.00012328,2]
[326889351,1715542268973,-1246.07,0.00012328,2]
[326889352,1715542268983,-2249.85,0.00012328,2]
[326889353,1715542268993,-786.02868077,0.00012328,2]
[326889354,1715542269002,-776.35,0.00012328,2]
[326889355,1715542269012,-1365.45173433,0.00012328,2]
[326889356,1715542269021,-1246.07,0.00012328,2]
[326889357,1715542269030,-2249.85,0.00012328,2]
[326889358,1715542269039,-776.35,0.00012328,2]
[326889359,1715542269049,-2249.85,0.00012328,2]
[326889360,1715542269058,-776.35,0.00012328,2]
[326889361,1715542269068,-1246.07,0.00012328,2]
[326889362,1715542269078,-776.35,0.00012328,2]
[326889363,1715542269088,-2249.85,0.00012328,2]
[326889364,1715542269097,-1246.17788692,0.00012328,2]
[326889365,1715542269106,-776.35,0.00012328,2]
[326889366,1715542269116,-1479.76833434,0.00012328,2]
[326889367,1715542269245,-304.173246,0.00012328,2]
[326889368,1715542269457,-465.90841966,0.00012328,2]
[326889369,1715542269467,-505.85500088,0.00012328,2]
[326889370,1715542269477,-776.35,0.00012328,2]
[326889371,1715542269487,-2249.85,0.00012328,2]
[326889372,1715542269496,-776.35,0.00012328,2]
[326889373,1715542269506,-2249.85,0.00012328,2]
[326889374,1715542269515,-776.35,0.00012328,2]
[326889375,1715542269529,-1645.87,0.00012328,2]
[326889376,1715542269539,-2249.85,0.00012328,2]
[326889377,1715542269549,-776.54551984,0.00012328,2]
[326889378,1715542269559,-2249.85,0.00012328,2]
[326889379,1715542269569,-2249.85,0.00012328,2]
[326889380,1715542269579,-1645.87,0.00012328,2]
[326889381,1715542269589,-2249.85,0.00012328,2]
[326889382,1715542269598,-1022.67117388,0.00012328,2]
[326889383,1715542270952,-798.2572512,0.00012228,2]
[326889384,1715542270964,-538.95999007,0.00012228,2]
[326889394,1715543007329,269.08027735,9.782e-05,2]
[326889395,1715543060425,1695.87196418,9.782e-05,2]
[326889396,1715543085496,415.10114393,9.782e-05,2]
[326889397,1715543085519,961.7789834,9.782e-05,2]
[326889398,1715543103490,210.44334258,9.782e-05,2]
[326889399,1715543128094,399.85245171,9.782e-05,2]
[326889412,1715543280466,300.0,9.782e-05,2]
[326889413,1715543291949,399.85245171,9.782e-05,2]
[326889516,1715543432320,-155.0,0.00010904,2]
[326889517,1715543432330,-344.2998041,0.00010905,2]
[326889518,1715543432463,-655.7001959,0.00010905,2]
[326889520,1715543432474,-250.0,0.00010905,2]
[326889522,1715543432484,-802.0,0.00010911,2]
[326889524,1715543432493,-83.0247541,0.00010912,2]
[326889526,1715543432506,-601.41403316,0.00010912,2]
[326889555,1715543438424,-513.95121274,0.00010912,2]
[326889556,1715543438433,-1370.8532639,0.00010914,2]
[326889557,1715543438445,-573.8967361,0.00010914,2]
[326889558,1715543438455,-250.0,0.00010926,2]
[326889559,1715543438464,-591.62,0.00010936,2]
[326889560,1715543438473,-441.0463714,0.00010945,2]
[326889561,1715543438484,-393.26039802,0.00010945,2]
[326889562,1715543438516,-665.69323058,0.00010945,2]
[326889563,1715543438525,-673.6,0.00010953,2]
[326889564,1715543438535,-1973.16118331,0.0001099,2]
[326889565,1715543438547,-548.83881669,0.0001099,2]
[326889566,1715543438556,-187.29,0.00011036,2]
[326889567,1715543438566,-1265.97856805,0.000111,2]
[326889568,1715543438575,-326.4,0.00011112,2]
[326889569,1715543438584,-150.0,0.00011117,2]
[326889570,1715543438593,-165.13,0.00011125,2]
[326889571,1715543438602,-158.00157636,0.00011317,2]
[326889572,1715543438612,-168.16,0.00011368,2]
[326889574,1715543438622,-312.71181864,0.0001171,2]
[326889576,1715543438630,-1249.8992678,0.000118,2]
[326889578,1715543438640,-351.45,0.000118,2]
[326889580,1715543438649,-829.86,0.00011841,2]
[326889582,1715543438658,-351.45,0.00011878,2]
[326889584,1715543438667,-398.86,0.00011978,2]
[326889586,1715543438677,-200.0,0.00012187,2]
[326889588,1715543438685,-181.85,0.00012187,2]
[326889590,1715543438695,-1725.70712,0.000122,2]
[326889591,1715543438704,-3648.9431,0.00012228,2]
[326889592,1715543438713,-20880.4762888,0.00012228,2]
[326889593,1715543438724,-2153.135,0.00012228,2]
[326889594,1715543438763,-429.29344456,0.00012228,2]
[326889595,1715543438791,-1084.17957934,0.00012228,2]
[326889604,1715543443267,-55885.6938873,0.00012228,2]
[326889605,1715543443278,-1000.0,0.00012228,2]
[326889606,1715543443288,-1000.0,0.00012228,2]
[326889607,1715543443298,-2500.0,0.00012228,2]
[326889608,1715543443308,-4568.5405,0.00012228,2]
[326889609,1715543443318,-173.31130324,0.00012228,2]
[326889610,1715543443327,-299.82252952,0.00012228,2]
[326889611,1715543443338,-7509.83070935,0.00012228,2]
[326889612,1715543443348,-530.68470014,0.00012228,2]
[326889613,1715543443357,-300.0,0.00012228,2]
[326889614,1715543443367,-2398.39561542,0.00012228,2]
[326889615,1715543443376,-500.0,0.00012229,2]
[326889616,1715543443386,-171.87,0.0001224,2]
[326889617,1715543443396,-1563.06983317,0.00012267,2]
[326889618,1715543443405,-2223.76178161,0.000123,2]
[326889619,1715543443415,-1052.52994844,0.000123,2]
[326889620,1715543443425,-160.57,0.00012318,2]
[326889621,1715543443435,-160.57,0.00012318,2]
[326889622,1715543443444,-673.6,0.00012322,2]
[326889623,1715543443454,-1237.8810114,0.00012324,2]
[326889624,1715543443466,-12256.4614089,0.00012324,2]
[326889625,1715543443475,-8254.949321,0.00012324,2]
[326889626,1715543443485,-987.9242775,0.00012324,2]
[326889627,1715543443494,-5268.69051153,0.00012326,2]
[326889628,1715543443504,-528.24751457,0.00012326,2]
[326889629,1715543443514,-2184.0224015,0.00012326,2]
[326889630,1715543443523,-2219.88737187,0.00012326,2]
[326889631,1715543443533,-685.49139582,0.00012326,2]
[326889632,1715543443543,-207.77106734,0.00012327,2]
[326889633,1715543443552,-5293.5740254,0.00012327,2]
[326889634,1715543443562,-5863.25440605,0.00012327,2]
[326889635,1715543443571,-533.0,0.00012328,2]
[326889636,1715543443580,-96067.84839301,0.00012328,2]
[326889637,1715543443616,-136589.80030153,0.00012328,2]
[326889638,1715543443635,-10885.30238,0.00012328,2]
[326889639,1715543443654,-1168.92276097,0.00012328,2]
[326889640,1715543443748,-302.09356369,0.00012328,2]
[326889643,1715543446220,-155.0,0.00012326,2]
[326889644,1715543446229,-115.462826,0.00012328,2]
[326889645,1715543446241,-1500.41247951,0.00012328,2]
[326889646,1715543446252,-29917.45886401,0.00012328,2]
[326889647,1715543446448,-997.4085,0.00012328,2]
[326889648,1715543446460,-553.627,0.00012328,2]
[326889649,1715543446471,-5960.4558865,0.00012328,2]
[326889650,1715543446517,-19840.83385625,0.00012328,2]
[326889651,1715543446528,-2734.71085841,0.00012328,2]
[326889652,1715543446540,-909.18055416,0.00012328,2]
[326889654,1715543472487,1728.0727706,9.782e-05,2]
[326889655,1715543472510,4000.0,9.782e-05,2]
[326889656,1715543472532,4000.0,9.782e-05,2]
[326889657,1715543472556,4000.0,9.782e-05,2]
[326889658,1715543472578,4000.0,9.782e-05,2]
[326889659,1715543472601,4000.0,9.782e-05,2]
[326889660,1715543472624,4000.0,9.782e-05,2]
[326889661,1715543472648,4000.0,9.782e-05,2]
[326889662,1715543472674,272815.34657918,9.782e-05,2]
[326889666,1715543549039,143402.08688097,9.782e-05,2]
[326889667,1715543558520,-155.0,0.00011092,2]
[326889668,1715543558545,-181.9451404,0.00011093,2]
[326889689,1715544095265,295.47712755,0.00011013,2]
[326889693,1715544209491,4367.57773205,0.00010835,2]
[326889776,1715544631460,-177.04,0.00010493,2]
[326889777,1715544631470,-155.0,0.00010522,2]
[326889778,1715544631479,-1204.76205397,0.00010522,2]
[326889779,1715544631489,-158.00157636,0.00010523,2]
[326889780,1715544631498,-2035.19636967,0.00010524,2]
[326889781,1715544631571,-6327.76608278,0.00010524,2]
[326889782,1715544631580,-200.0,0.00010526,2]
[326889783,1715544631590,-150.0,0.00010542,2]
[326889784,1715544631600,-150.0,0.00010542,2]
[326889785,1715544631610,-3610.31863421,0.00010543,2]
[326889786,1715544631622,-1922.30611792,0.00010543,2]
[326889787,1715544631644,-12221.32499996,0.00010543,2]
[326889788,1715544631656,-6146.05024791,0.00010543,2]
[326889789,1715544631665,-779.77,0.00010581,2]
[326889790,1715544631674,-165.13,0.00010586,2]
[326889791,1715544631684,-156.92551456,0.00010591,2]
[326889792,1715544631693,-547.54879569,0.00010634,2]
[326889793,1715544631753,-1183.56621942,0.00010634,2]
[326889841,1715544637386,-158.00157636,0.00010492,2]
[326889842,1715544637396,-160.83,0.00010608,2]
[326889843,1715544637406,-601.08498489,0.00010634,2]
[326889844,1715544637417,-250.0,0.00010693,2]
[326889845,1715544637427,-250.0,0.00010712,2]
[326889846,1715544637436,-404.16,0.00010712,2]
[326889847,1715544637446,-539.72354301,0.00010831,2]
[326889848,1715544637455,-104.39226795,0.00010835,2]
[326889849,1715544637464,-160.83,0.00010885,2]
[326889850,1715544637474,-160.83,0.00011161,2]
[326889851,1715544637483,-542.93,0.0001118,2]
[326889852,1715544637492,-542.93,0.00011183,2]
[326889853,1715544637501,-542.93,0.00011186,2]
[326889854,1715544637511,-542.93,0.00011189,2]
[326889855,1715544637520,-542.93,0.00011192,2]
[326889856,1715544637530,-542.93,0.00011195,2]
[326889857,1715544637540,-542.93,0.00011198,2]
[326889858,1715544637549,-542.93,0.00011201,2]
[326889859,1715544637558,-542.93,0.00011204,2]
[326889860,1715544637568,-542.93,0.00011207,2]
[326889861,1715544637577,-542.93,0.0001121,2]
[326889862,1715544637587,-542.93,0.00011212,2]
[326889863,1715544637596,-542.93,0.00011215,2]
[326889864,1715544637605,-542.93,0.00011218,2]
[326889865,1715544637615,-542.93,0.00011221,2]
[326889866,1715544637624,-542.93,0.00011224,2]
[326889867,1715544637634,-542.93,0.00011227,2]
[326889868,1715544637644,-542.93,0.0001123,2]
[326889869,1715544637653,-542.93,0.00011233,2]
[326889870,1715544637663,-542.93,0.00011236,2]
[326889871,1715544637672,-595.84,0.00011303,2]
[326889872,1715544637682,-404.16,0.00012051,2]
[326889873,1715544637691,-191.72654268,0.00012088,2]
[326889874,1715544637700,-1646.0,0.00012197,2]
[326889875,1715544637710,-154.806,0.00012197,2]
[326889876,1715544637719,-214.635,0.00012197,2]
[326889877,1715544637728,-2433.0,0.00012197,2]
[326889879,1715544637737,-448.756,0.00012197,2]
[326889880,1715544637747,-1111.2316661,0.00012197,2]
[326889912,1715544639458,-1010.64679672,0.00012197,2]
[326889913,1715544639470,-1034.12153718,0.00012197,2]
[326889914,1715544639479,-219.0,0.00012197,2]
[326889915,1715544639488,-1159.342,0.00012197,2]
[326889916,1715544639498,-291.642,0.00012197,2]
[326889917,1715544639507,-5749.0,0.00012197,2]
[326889918,1715544639516,-3645.8945965,0.00012197,2]
[326889919,1715544639730,-5601.84944814,0.00012197,2]
[326889943,1715544642503,-500.0,0.00011328,2]
[326889944,1715544642513,-28583.25595536,0.00012197,2]
[326889945,1715544642523,-1463.0,0.00012197,2]
[326889946,1715544642532,-1540.595,0.00012197,2]
[326889947,1715544642542,-1103.0,0.00012197,2]
[326889948,1715544642551,-1000.0,0.000122,2]
[326889949,1715544642561,-1000.0,0.000122,2]
[326889950,1715544642570,-1000.0,0.000122,2]
[326889951,1715544642579,-376.0,0.000122,2]
[326889952,1715544642589,-883.49265283,0.000122,4]
[326889953,1715544642598,-156.92551455,0.00012202,2]
[326889954,1715544642608,-609.85699684,0.00012202,2]
[326889955,1715544642617,-609.85699683,0.00012215,2]
[326889956,1715544642627,-367.8616,0.00012224,2]
[326889957,1715544642637,-500.0,0.00012228,2]
[326889958,1715544642647,-1000.0,0.00012228,2]
[326889959,1715544642656,-44685.0377,0.00012228,2]
[326889960,1715544642665,-232.9531,0.00012228,2]
[326889961,1715544642675,-4012.8059,0.00012228,2]
[326889962,1715544642685,-154.2572726,0.00012228,2]
[326889963,1715544642694,-609.85699683,0.00012228,2]
[326889964,1715544642703,-500.0,0.00012229,2]
[326889965,1715544642713,-150.0,0.00012254,2]
[326889966,1715544642723,-160.58,0.0001227,2]
[326889967,1715544642732,-151.56,0.0001227,2]
[326889968,1715544642742,-151.56,0.0001227,2]
[326889969,1715544642751,-151.56,0.0001227,2]
[326889970,1715544642760,-151.56,0.0001227,2]
[326889972,1715544642771,-151.56,0.0001227,2]
[326889974,1715544642781,-151.56,0.0001227,2]
[326889975,1715544642790,-151.56,0.0001227,2]
[326889976,1715544642800,-151.56,0.0001227,2]
[326889977,1715544642810,-151.56,0.0001227,2]
[326889978,1715544642819,-151.56,0.0001227,2]
[326889979,1715544642828,-151.56,0.0001227,2]
[326889980,1715544642838,-151.56,0.0001227,2]
[326889981,1715544642847,-151.56,0.0001227,2]
[326889982,1715544642856,-151.56,0.0001227,2]
[326889983,1715544642866,-151.56,0.0001227,2]
[326889984,1715544642875,-151.56,0.0001227,2]
[326889985,1715544642885,-151.56,0.0001227,2]
[326889986,1715544642894,-151.56,0.0001227,2]
[326889987,1715544642904,-151.56,0.0001227,2]
[326889988,1715544642913,-151.56,0.0001227,2]
[326889989,1715544642922,-151.56,0.0001227,2]
[326889990,1715544642932,-151.56,0.0001227,2]
[326889991,1715544642941,-151.56,0.0001227,2]
[326889992,1715544643200,-151.56,0.0001227,2]
[326889993,1715544643236,-151.56,0.0001227,2]
[326889994,1715544643247,-151.56,0.0001227,2]
[326889995,1715544643256,-151.56,0.0001227,2]
[326889996,1715544643265,-151.56,0.0001227,2]
[326889997,1715544643275,-151.56,0.0001227,2]
[326889998,1715544643284,-151.56,0.0001227,2]
[326889999,1715544643293,-151.56,0.0001227,2]
[326890000,1715544643303,-151.56,0.0001227,2]
[326890001,1715544643312,-151.56,0.0001227,2]
[326890002,1715544643322,-151.56,0.0001227,2]
[326890003,1715544643331,-151.56,0.0001227,2]
[326890004,1715544643341,-151.56,0.0001227,2]
[326890005,1715544643351,-151.56,0.0001227,2]
[326890006,1715544643360,-151.56,0.0001227,2]
[326890007,1715544643370,-160.58,0.0001227,2]
[326890008,1715544643382,-382855.23591137,0.0001228,2]
[326890009,1715544643391,-144546.87126214,0.0001228,2]
[326890010,1715544645501,-500.0,0.00011328,2]
[326890011,1715544645511,-500.0,0.00011328,2]
[326890012,1715544645521,-500.0,0.00011328,2]
[326890013,1715544645530,-500.0,0.00011328,2]
[326890014,1715544645540,-500.0,0.00011328,2]
[326890015,1715544645550,-500.0,0.00011328,2]
[326890016,1715544645560,-500.0,0.00011328,2]
[326890017,1715544645570,-500.0,0.00011328,2]
[326890018,1715544645580,-1059.0,0.00012197,2]
[326890019,1715544645590,-155.82024123,0.00012279,2]
[326890020,1715544645599,-9521.90175877,0.0001228,2]
[326890021,1715544645643,-327.21976693,0.0001228,2]
[326890102,1715544951817,-155.0,0.00010379,2]
[326890103,1715544951843,-155.0,0.00010379,2]
[326890104,1715544951870,-5269.99465171,0.00010379,2]
[326890105,1715544951896,-155.0,0.0001038,2]
[326890106,1715544951922,-642.95246665,0.0001038,2]
[326890107,1715544951948,-685.68606109,0.00010381,2]
[326890108,1715544951973,-155.0,0.00010381,2]
[326890109,1715544951999,-8362.96245245,0.00010381,2]
[326890110,1715544952024,-377.72952639,0.00010382,2]
[326890111,1715544952051,-2184.52280122,0.00010382,2]
[326890112,1715544952077,-150.0,0.00010383,2]
[326890114,1715544952102,-561.37424248,0.00010383,2]
[326890115,1715544952128,-405.63530923,0.00010383,2]
[326890116,1715544952153,-739.14248878,0.00010383,2]
[326890132,1715545379765,156.92551455,0.00010066,2]
[326890134,1715545457707,-374.24949499,0.0001016,2]
[326890135,1715545457732,-642.95246665,0.0001016,2]
[326890136,1715545457760,-1247.33362564,0.00010161,2]
[326890137,1715545457787,-250.0,0.00010168,2]
[326890138,1715545457814,-3070.09,0.00010185,2]
[326890139,1715545457841,-307.07,0.00010244,2]
[326890140,1715545457868,-307.07,0.00010273,2]
[326890141,1715545457894,-307.07,0.00010301,2]
[326890142,1715545457919,-307.07,0.00010329,2]
[326890143,1715545457945,-307.07,0.00010357,2]
[326890144,1715545457970,-307.07,0.00010385,2]
[326890145,1715545457996,-150.0,0.00010392,2]
[326890146,1715545458020,-8502.174,0.00010393,2]
[326890147,1715545458045,-307.07,0.00010413,2]
[326890148,1715545458073,-307.07,0.00010441,2]
[326890149,1715545458098,-250.0,0.00010466,2]
[326890150,1715545458124,-307.07,0.00010469,2]
[326890151,1715545458149,-307.07,0.00010497,2]
[326890152,1715545458176,-307.07,0.00010526,2]
[326890153,1715545458203,-307.07,0.00010554,2]
[326890154,1715545458230,-307.07,0.00010582,2]
[326890155,1715545458256,-307.07,0.0001061,2]
[326890156,1715545458281,-307.07,0.00010638,2]
[326890157,1715545458307,-307.07,0.00010666,2]
[326890158,1715545458331,-307.07,0.00010694,2]
[326890159,1715545458355,-307.07,0.00010722,2]
[326890160,1715545458380,-307.07,0.0001075,2]
[326890161,1715545458407,-307.07,0.00010779,2]
[326890162,1715545458435,-258.09,0.00010849,2]
[326890163,1715545458460,-8353.09,0.00010868,2]
[326890164,1715545458485,-6060.16,0.00010868,2]
[326890165,1715545458514,-1000.0,0.00010884,2]
[326890166,1715545458539,-3700.46041272,0.00010884,2]
[326890174,1715545546876,-250.0,0.00010884,2]
[326890249,1715545780567,250.0,0.00010089,2]
[326890262,1715545831720,-158.00157636,0.00010493,2]
[326890263,1715545831730,-2220.53511034,0.00010493,2]
[326890264,1715545831739,-10846.21115518,0.00010493,2]
[326890265,1715545831748,-433.5417908,0.00010494,2]
[326890266,1715545831760,-209.41067585,0.00010494,2]
[326890267,1715545831771,-150.22,0.00010496,2]
[326890268,1715545831780,-150.22,0.00010501,2]
[326890269,1715545831790,-150.22,0.00010505,2]
[326890270,1715545831799,-150.22,0.0001051,2]
[326890271,1715545831808,-150.22,0.00010515,2]
[326890272,1715545831817,-150.22,0.0001052,2]
[326890273,1715545831826,-150.22,0.00010524,2]
[326890274,1715545831836,-150.22,0.00010529,2]
[326890275,1715545831845,-150.22,0.00010534,2]
[326890276,1715545831854,-150.22,0.00010539,2]
[326890277,1715545831863,-342.19,0.00010539,2]
[326890278,1715545831873,-150.22,0.00010543,2]
[326890280,1715545831882,-150.22,0.00010548,2]
[326890282,1715545831891,-150.0,0.00010851,2]
[326890284,1715545831901,-300.0,0.00010851,2]
[326890286,1715545831910,-150.0,0.00010851,2]
[326890288,1715545831919,-2661.0971871,0.00010852,2]
[326890290,1715545831930,-300.6296171,0.00010852,2]
[326890292,1715545831941,-759.3231958,0.00010852,2]
[326890294,1715545831950,-238.5492376,0.00010882,2]
[326890296,1715545831961,-410.67782128,0.00010882,2]
[326890298,1715545831970,-508.58576719,0.00010884,2]
[326890300,1715545831981,-935.25814264,0.00010884,2]
[326890303,1715545831993,-2888.85567745,0.00010884,2]
[326890305,1715545832002,-195.04,0.00010894,2]
[326890307,1715545832011,-3157.42451711,0.00010959,2]
[326890308,1715545832022,-7194.41548289,0.00010959,2]
[326890310,1715545832031,-423.30398004,0.00011047,2]
[326890311,1715545832040,-444.17390699,0.00011049,2]
[326890313,1715545832050,-47767.95755942,0.00011049,2]
[326890316,1715545832061,-1488.679186,0.00011049,2]
[326890318,1715545832072,-5694.45398716,0.00011049,2]
[326890320,1715545832083,-1501.57922295,0.00011049,2]
[326890322,1715545832094,-455.94522447,0.00011049,2]
[326890324,1715545832105,-1671.1711544,0.00011049,2]
[326890327,1715545832116,-456.76620795,0.00011049,2]
[326890329,1715545832129,-850.0,0.00011049,2]
[326890331,1715545832144,-3680.60104877,0.00011049,2]
[326890333,1715545832155,-1673.69726498,0.00011049,2]
[326890336,1715545832177,-761.75219466,0.00011049,2]
[326890340,1715545832199,-69845.21855893,0.00011049,2]
[326890342,1715545832208,-893.71353405,0.00011051,2]
[326890344,1715545832218,-150.99,0.00011052,2]
[326890346,1715545832232,-814.4,0.00011215,2]
[326890347,1715545832241,-814.4,0.00011218,2]
[326890349,1715545832251,-814.4,0.00011221,2]
[326890351,1715545832260,-814.4,0.00011224,2]
[326890353,1715545832269,-814.4,0.00011227,2]
[326890355,1715545832278,-814.4,0.0001123,2]
[326890357,1715545832287,-814.4,0.00011233,2]
[326890359,1715545832297,-814.4,0.00011236,2]
[326890361,1715545832307,-814.4,0.00011239,2]